{"text_format":"3","workbook":"xlsx","n_sheets":4,"sheets":["Alışveriş Listesi","Bütçe Dökümü","Yapılacaklar Listesi","Listeyi Paylaş"],"not_rendered":{"charts":2,"images":2,"defined_names":12},"read":"whole","date_system":"1900"}

{"sheet":"Alışveriş Listesi","index":0,"n_rows":25,"n_cols":8,"rows_kept":25,"merged":[[2,1,2,7],[3,1,3,2],[4,4,6,7]]}
[null,"Okula Dönüş","Planlayıcısı"]
[]
[null,"Bütçe Dökümüne girilen bütçe kategorisi tutarlarına göre alışverişteki ilerleme durumunuzu izleyin."]
[null,"Bütçe Özeti",null,null,{"$f":"\"Satın Alma İlerleme Durumu (\"&COUNTIFS(Denetim_Listesi[Satın Alınanlar], \">0\")&\" / \"&COUNTIFS(Denetim_Listesi[Satın Alınacaklar], \">0\")&\")\"","v":"Satın Alma İlerleme Durumu (1 / 6)"}]
[null,"Bütçe",{"v":1500,"d":"1,500.00 ₺"},null,{"$f":"IFERROR(COUNTIFS(Denetim_Listesi[Satın Alınacaklar],\">0\",Denetim_Listesi[Satın Alınanlar],\">0\")/SatınAlınacakÜrünlerinToplamı,0)","v":{"v":0.16666666666666666,"d":"17%"}}]
[null,"Alışveriş Listesi Toplamı",{"$f":"IFERROR(SUM(DenetimListesiToplam), \"\")","v":{"v":365,"d":"365.00 ₺"}}]
[null,"Kalan Nakit",{"$f":"IFERROR(C5-C6, \"\")","v":{"v":1135,"d":"1,135.00 ₺"}}]
[null,"Alışveriş Listesi"]
[null,"Ürün","Kategori","Tutar","Satın Alınacaklar","Maliyet","Satın Alınanlar","Toplam Maliyet"]
[null,"Matematik","Ders Kitapları",1,1,{"v":55,"d":"55.00 ₺"},1,{"$f":"IFERROR(Denetim_Listesi[Tutar]*Denetim_Listesi[Maliyet], \"\")","v":{"v":55,"d":"55.00 ₺"}}]
[null,"İngilizce","Ders Kitapları",1,1,null,null,{"$f":"IFERROR(Denetim_Listesi[Tutar]*Denetim_Listesi[Maliyet], \"\")","v":0}]
[null,"Sırt çantası","Malzemeler",1,null,{"v":30,"d":"30.00 ₺"},null,{"$f":"IFERROR(Denetim_Listesi[Tutar]*Denetim_Listesi[Maliyet], \"\")","v":{"v":30,"d":"30.00 ₺"}}]
[null,"Hesap makinesi","Malzemeler",1,{"$nulls":3},{"$f":"IFERROR(Denetim_Listesi[Tutar]*Denetim_Listesi[Maliyet], \"\")","v":0}]
[null,"İşaret kalemi","Malzemeler",3,{"$nulls":3},{"$f":"IFERROR(Denetim_Listesi[Tutar]*Denetim_Listesi[Maliyet], \"\")","v":0}]
[null,"Üniforma","Kıyafet",2,1,{"v":100,"d":"100.00 ₺"},null,{"$f":"IFERROR(Denetim_Listesi[Tutar]*Denetim_Listesi[Maliyet], \"\")","v":{"v":200,"d":"200.00 ₺"}}]
[null,"Gömlek, düğmeli","Kıyafet",4,{"$nulls":3},{"$f":"IFERROR(Denetim_Listesi[Tutar]*Denetim_Listesi[Maliyet], \"\")","v":0}]
[null,"Gömlek, tişört","Kıyafet",5,{"$nulls":3},{"$f":"IFERROR(Denetim_Listesi[Tutar]*Denetim_Listesi[Maliyet], \"\")","v":0}]
[null,"Şort","Kıyafet",2,{"$nulls":3},{"$f":"IFERROR(Denetim_Listesi[Tutar]*Denetim_Listesi[Maliyet], \"\")","v":0}]
[null,"Spor ayakkabısı","Kıyafet",2,1,null,null,{"$f":"IFERROR(Denetim_Listesi[Tutar]*Denetim_Listesi[Maliyet], \"\")","v":0}]
[null,"Çorap","Kıyafet",10,{"$nulls":3},{"$f":"IFERROR(Denetim_Listesi[Tutar]*Denetim_Listesi[Maliyet], \"\")","v":0}]
[null,"Baharlık ceket","Kıyafet",1,1,{"v":80,"d":"80.00 ₺"},null,{"$f":"IFERROR(Denetim_Listesi[Tutar]*Denetim_Listesi[Maliyet], \"\")","v":{"v":80,"d":"80.00 ₺"}}]
[null,"Kazak","Kıyafet",1,{"$nulls":3},{"$f":"IFERROR(Denetim_Listesi[Tutar]*Denetim_Listesi[Maliyet], \"\")","v":0}]
[null,"Eşofman üstü","Kıyafet",1,{"$nulls":3},{"$f":"IFERROR(Denetim_Listesi[Tutar]*Denetim_Listesi[Maliyet], \"\")","v":0}]
[null,"İç çamaşırı","Kıyafet",10,{"$nulls":3},{"$f":"IFERROR(Denetim_Listesi[Tutar]*Denetim_Listesi[Maliyet], \"\")","v":0}]
[null,"Kaban","Kıyafet",1,1,null,null,{"$f":"IFERROR(Denetim_Listesi[Tutar]*Denetim_Listesi[Maliyet], \"\")","v":0}]

{"sheet":"Bütçe Dökümü","index":1,"n_rows":6,"n_cols":3,"rows_kept":6}
[null,"Bütçe Dökümü"]
[null,"Alışveriş Listenizde izlemek için kategoriler ve bütçe tutarları ekleyin."]
[null,"Kategori","Toplam Maliyet"]
[null,"Kıyafet",{"$f":"IFERROR(SUMIFS(Denetim_Listesi[Toplam Maliyet],Denetim_Listesi[Kategori],Kategori[Kategori]), \"\")","v":{"v":280,"d":"280.00 ₺"}}]
[null,"Malzemeler",{"$f":"IFERROR(SUMIFS(Denetim_Listesi[Toplam Maliyet],Denetim_Listesi[Kategori],Kategori[Kategori]), \"\")","v":{"v":30,"d":"30.00 ₺"}}]
[null,"Ders Kitapları",{"$f":"IFERROR(SUMIFS(Denetim_Listesi[Toplam Maliyet],Denetim_Listesi[Kategori],Kategori[Kategori]), \"\")","v":{"v":55,"d":"55.00 ₺"}}]

{"sheet":"Yapılacaklar Listesi","index":2,"n_rows":22,"n_cols":3,"rows_kept":22}
[null,"Yapılacaklar Listesi"]
[null,"Okul başlamadan önce tamamlamanız gereken tüm etkinlikleri izleyin."]
[null,"Tamamlandı","Görev"]
[null,"x","Tüm Kayıt Formlarını Tamamlama"]
[null,null,"Gerekiyorsa Okul için Fiziksel ve Görsel Sınavları Zamanlama"]
[null,null,"Gerekli Tüm Aşıları Doğrulama"]
[null,null,"Doktordan Gerekli Tüm İlaçlar için Doz Yönergelerini Alma"]
[null,null,"Okulun Kıyafet Yönetmeliğini Gözden Geçirin"]
[null,null,"Okul Malzemelerinin Listesini Alma"]
[null,null,"Öğretmenle Tanışma"]
[null,null,"Öğretmen İletişimi için Tercih Edilen Yöntemi (Telefon, E-posta, Yazılı Not) Belirleme"]
[null,null,"Çocuğunuzla Okul Turuna Katılma"]
[null,null,"Çocuğunuzun Ev Telefonunuzu, İş Telefonunuzu ve Ev Adresinizi Ezberlemesine Yardımcı Olma"]
[null,null,"Ulaşımı Ayarlama, Güvenli Bir Buluşma Noktası Belirleme ve Bu Rutinin Alıştırmasını Yapma"]
[null,null,"Okula Yürüyerek Gidecekse, Çocuğunuzla Birlikte Okula Gidiş ve Okuldan Dönüş Rotasının Alıştırmasını Yapma"]
[null,null,"Okula Paylaşılan Bir Araçla Gidecekse, Aracın Tüm Sürücülerini Çocuğunuza Tanıtma"]
[null,null,"Okula Otobüsle Gidecekse, Saatleri ve Otobüs Duraklarını Belirleme"]
[null,null,"Çocuk Bakımı/Okul Sonrası Bakım Planını Yapma"]
[null,null,"Kahvaltılar, Okul Atıştırmalıkları, Öğle Yemeği Beslenme Çantası ve Okul Sonrası Atıştırmalıkları için Menü Planlama"]
[null,null,"Ev Ödevinin Konumunu ve Programını Belirleme"]
[null,null,"Yatma Saatini Okul Başlamadan En Az İki Hafta Önce Belirleme"]
[null,null,"Tüm Okul Etkinlikleri için Takvim Hazırlama"]

{"sheet":"Listeyi Paylaş","index":3,"n_rows":4,"n_cols":5,"rows_kept":4}
[null,"Listeyi Paylaş",null,null,"Katkıda bulunabilmeleri için bu listeyi diğer kişilerle paylaşın. Sağ üstteki Paylaş’ı seçin veya ALT ve UQ tuşlarına basın. Dosyayı OneDrive’a kaydedin ve arkadaşlarınıza dosya bağlantısını gönderin."]
[null,"Ad","E-posta","Paylaşıldı"]
[null,"Kişi 1","birisi@email.com","Evet"]
[null,"Kişi 2","birisi@email.com","Hayır"]